[Event "GrandPrix_30.05"]
[Site "Chess.com"]
[Date "2020.05.30"]
[Round "1"]
[White "Guenplen"]
[Black "ploky25"]
[Result "1-0"]
[WhiteElo "2522"]
[BlackElo "2129"]
[TimeControl "600+2"]
[EndTime "8:22:39 PDT"]
[Termination "Guenplen won by resignation"]

1. d4 {[%clk 0:10:01.9]} 1... Nf6 {[%clk 0:10:00.1]} 2. Bf4 {[%clk 0:10:02]}
2... d5 {[%clk 0:09:52.2]} 3. e3 {[%clk 0:10:02.8]} 3... c5 {[%clk 0:09:50]} 4.
c3 {[%clk 0:10:03.7]} 4... e6 {[%clk 0:09:46.3]} 5. Nd2 {[%clk 0:10:03.1]} 5...
Bd6 {[%clk 0:09:41.4]} 6. Bg3 {[%clk 0:10:03.2]} 6... O-O {[%clk 0:09:40]} 7.
Ngf3 {[%clk 0:10:03.2]} 7... Qc7 {[%clk 0:09:35.7]} 8. Ne5 {[%clk 0:10:02.4]}
8... Nc6 {[%clk 0:08:57.1]} 9. f4 {[%clk 0:10:00.7]} 9... Ne7 {[%clk 0:08:54.9]}
10. Bd3 {[%clk 0:09:41.9]} 10... Nf5 {[%clk 0:08:47.3]} 11. Bf2 {[%clk
0:09:41.1]} 11... Be7 {[%clk 0:08:45.1]} 12. g4 {[%clk 0:09:25.2]} 12... Nd6
{[%clk 0:08:44.5]} 13. Qb1 {[%clk 0:09:19.3]} 13... b6 {[%clk 0:08:18.6]} 14.
Bh4 {[%clk 0:08:35.1]} 14... Nfe4 {[%clk 0:07:50.2]} 15. Bxe7 {[%clk 0:08:34.1]}
15... Qxe7 {[%clk 0:07:50]} 16. g5 {[%clk 0:08:29.5]} 16... Bb7 {[%clk
0:07:22.6]} 17. Qc2 {[%clk 0:08:00.8]} 17... Rac8 {[%clk 0:07:07.3]} 18. Bxe4
{[%clk 0:07:32.2]} 18... dxe4 {[%clk 0:06:59]} 19. dxc5 {[%clk 0:07:30]} 19...
Rxc5 {[%clk 0:06:49.5]} 20. Nb3 {[%clk 0:07:29.6]} 20... Rc7 {[%clk 0:06:41.8]}
21. Nd4 {[%clk 0:07:24.3]} 21... Bd5 {[%clk 0:06:06]} 22. Rg1 {[%clk 0:07:20.1]}
22... b5 {[%clk 0:05:57.8]} 23. a3 {[%clk 0:07:01.5]} 23... a5 {[%clk 0:05:54]}
24. Ng4 {[%clk 0:06:32.5]} 24... Kh8 {[%clk 0:05:43.3]} 25. Rg3 {[%clk
0:06:11.7]} 25... b4 {[%clk 0:04:17.2]} 26. axb4 {[%clk 0:06:13.6]} 26... axb4
{[%clk 0:04:17.8]} 27. Rh3 {[%clk 0:06:12.4]} 27... bxc3 {[%clk 0:04:14.8]} 28.
bxc3 {[%clk 0:06:14.3]} 28... Nf5 {[%clk 0:03:56.8]} 29. Qf2 {[%clk 0:05:22.3]}
29... f6 {[%clk 0:03:14.4]} 30. g6 {[%clk 0:04:50.1]} 30... h6 {[%clk
0:03:05.7]} 31. Nxf5 {[%clk 0:04:38]} 31... exf5 {[%clk 0:03:05.1]} 32. Nxh6
{[%clk 0:04:39.4]} 32... gxh6 {[%clk 0:03:01.4]} 33. Rxh6+ {[%clk 0:04:41.3]}
33... Kg8 {[%clk 0:03:01.8]} 34. Qh4 {[%clk 0:04:11.1]} 34... Qg7 {[%clk
0:02:45]} 35. Rh7 {[%clk 0:03:47.7]} 35... Qxg6 {[%clk 0:02:22.6]} 36. Rxc7
{[%clk 0:03:47.8]} 36... Qg1+ {[%clk 0:02:14.1]} 37. Ke2 {[%clk 0:03:47]} 37...
Bc4+ {[%clk 0:02:00]} 38. Rxc4 {[%clk 0:03:44.2]} 38... Qxa1 {[%clk 0:01:59.8]}
39. Rc7 {[%clk 0:02:44.4]} 39... Qb2+ {[%clk 0:01:27.3]} 40. Kf1 {[%clk
0:02:40]} 40... Qc1+ {[%clk 0:01:28]} 41. Qe1 {[%clk 0:02:02.2]} 41... Qxe1+
{[%clk 0:01:28.5]} 42. Kxe1 {[%clk 0:02:04.1]} 42... Rb8 {[%clk 0:01:28.6]} 43.
c4 {[%clk 0:01:45.1]} 43... Rb2 {[%clk 0:01:27.9]} 44. h4 {[%clk 0:01:35.7]}
44... Rh2 {[%clk 0:01:28.6]} 45. c5 {[%clk 0:01:33.3]} 45... Kf8 {[%clk
0:00:40.6]} 46. c6 {[%clk 0:01:27]} 46... Ke8 {[%clk 0:00:38.4]} 47. Rh7 {[%clk
0:01:27.1]} 47... Kd8 {[%clk 0:00:38.3]} 48. h5 {[%clk 0:01:16.1]} 48... Kc8
{[%clk 0:00:36.7]} 49. h6 {[%clk 0:01:14.8]} 49... Rh5 {[%clk 0:00:28.6]} 50.
Rh8+ {[%clk 0:01:04]} 50... Kc7 {[%clk 0:00:28.7]} 51. h7 {[%clk 0:01:05.5]} 1-0

[Event "GrandPrix_30.05"]
[Site "Chess.com"]
[Date "2020.05.30"]
[Round "1"]
[White "Sanan_Sjugirov"]
[Black "bratkoo"]
[Result "1-0"]
[WhiteElo "2646"]
[BlackElo "2179"]
[TimeControl "600+2"]
[EndTime "8:22:42 PDT"]
[Termination "Sanan_Sjugirov won by resignation"]

1. e4 {[%clk 0:10:01.9]} 1... e6 {[%clk 0:09:59.3]} 2. d4 {[%clk 0:10:02.4]}
2... d5 {[%clk 0:10:00]} 3. Nd2 {[%clk 0:10:03.3]} 3... c5 {[%clk 0:09:59.3]} 4.
Ngf3 {[%clk 0:10:03.4]} 4... Nf6 {[%clk 0:09:56.6]} 5. exd5 {[%clk 0:09:35.1]}
5... exd5 {[%clk 0:09:58.5]} 6. Bb5+ {[%clk 0:09:34.8]} 6... Bd7 {[%clk
0:09:59.8]} 7. Bxd7+ {[%clk 0:09:35.5]} 7... Nbxd7 {[%clk 0:10:00.4]} 8. O-O
{[%clk 0:09:35.3]} 8... Be7 {[%clk 0:10:02]} 9. dxc5 {[%clk 0:09:35.8]} 9...
Nxc5 {[%clk 0:10:03.6]} 10. Re1 {[%clk 0:09:36.4]} 10... O-O {[%clk 0:10:03.3]}
11. Nf1 {[%clk 0:09:37.3]} 11... Nce4 {[%clk 0:09:56.1]} 12. Be3 {[%clk
0:09:36.3]} 12... Bd6 {[%clk 0:09:46.6]} 13. Bd4 {[%clk 0:09:32.7]} 13... Re8
{[%clk 0:09:46.2]} 14. Ne3 {[%clk 0:09:25.6]} 14... Qd7 {[%clk 0:09:47]} 15. c3
{[%clk 0:09:23.3]} 15... Bf4 {[%clk 0:09:35.4]} 16. Qc2 {[%clk 0:08:45.6]} 16...
Qc7 {[%clk 0:09:03.5]} 17. Rad1 {[%clk 0:08:22.7]} 17... Bxe3 {[%clk 0:09:02.8]}
18. Bxe3 {[%clk 0:07:59.2]} 18... a6 {[%clk 0:08:42.4]} 19. h3 {[%clk
0:07:57.3]} 19... Rad8 {[%clk 0:08:42.8]} 20. Qb3 {[%clk 0:07:43.1]} 20... b5
{[%clk 0:08:38]} 21. Bd4 {[%clk 0:07:09]} 21... Re6 {[%clk 0:08:22.3]} 22. Re3
{[%clk 0:06:57.3]} 22... Rde8 {[%clk 0:08:22.4]} 23. Rde1 {[%clk 0:06:43.7]}
23... h6 {[%clk 0:08:21.6]} 24. a4 {[%clk 0:06:41.9]} 24... Qc4 {[%clk
0:07:59.7]} 25. Qxc4 {[%clk 0:05:58]} 25... bxc4 {[%clk 0:07:44.6]} 26. Nh4
{[%clk 0:05:35]} 26... Nd6 {[%clk 0:06:17.4]} 27. Bxf6 {[%clk 0:05:13.1]} 27...
Rxe3 {[%clk 0:06:18.3]} 28. fxe3 {[%clk 0:04:54.4]} 28... gxf6 {[%clk
0:06:17.6]} 29. Rd1 {[%clk 0:04:54.1]} 29... Rxe3 {[%clk 0:05:51.9]} 30. Rxd5
{[%clk 0:04:53.9]} 30... Ne4 {[%clk 0:05:39.6]} 31. Nf5 {[%clk 0:04:24.2]} 31...
Re1+ {[%clk 0:05:39.7]} 32. Kh2 {[%clk 0:04:24.7]} 32... Kh7 {[%clk 0:05:40.1]}
33. Rd4 {[%clk 0:04:10.9]} 33... Re2 {[%clk 0:04:41]} 34. Rxc4 {[%clk
0:03:43.4]} 34... Nd2 {[%clk 0:04:41.8]} 35. Rf4 {[%clk 0:03:37.3]} 35... Nb3
{[%clk 0:04:25.2]} 36. Ng3 {[%clk 0:02:54.4]} 36... Re6 {[%clk 0:04:18.3]} 37.
Rb4 {[%clk 0:02:08.7]} 37... Nc5 {[%clk 0:04:18.4]} 38. a5 {[%clk 0:02:09.4]}
38... Re5 {[%clk 0:04:11.8]} 39. Rb6 {[%clk 0:02:03.6]} 39... Na4 {[%clk
0:04:11.6]} 40. Rxa6 {[%clk 0:01:08.8]} 40... Nxb2 {[%clk 0:04:10.6]} 41. Rxf6
{[%clk 0:01:06.4]} 41... Rxa5 {[%clk 0:04:10.4]} 42. Rxf7+ {[%clk 0:01:06.1]}
42... Kg6 {[%clk 0:04:11.7]} 43. Rc7 {[%clk 0:00:56.2]} 43... Nd3 {[%clk
0:04:12.5]} 44. Rc6+ {[%clk 0:00:55.8]} 44... Kh7 {[%clk 0:04:07.1]} 45. Rd6
{[%clk 0:00:52.7]} 45... Nf4 {[%clk 0:04:06.6]} 46. Rd4 {[%clk 0:00:41.8]} 46...
Nd5 {[%clk 0:03:47.6]} 47. c4 {[%clk 0:00:34.3]} 47... Nb6 {[%clk 0:03:42.2]}
48. Re4 {[%clk 0:00:27.9]} 48... Rc5 {[%clk 0:03:14.1]} 49. Re7+ {[%clk
0:00:28.4]} 49... Kg8 {[%clk 0:03:15.1]} 50. Re6 {[%clk 0:00:28.3]} 50... Nxc4
{[%clk 0:03:15.7]} 51. Rxh6 {[%clk 0:00:29.1]} 51... Ne3 {[%clk 0:03:16.9]} 52.
Re6 {[%clk 0:00:27.1]} 52... Rc3 {[%clk 0:03:10.4]} 53. Ne2 {[%clk 0:00:21.2]}
53... Ra3 {[%clk 0:03:11]} 54. Nf4 {[%clk 0:00:19.6]} 54... Kf7 {[%clk
0:03:07.8]} 55. Re4 {[%clk 0:00:14.5]} 55... Nf5 {[%clk 0:02:52.7]} 56. Re2
{[%clk 0:00:09.8]} 56... Kf6 {[%clk 0:02:46.4]} 57. Nd5+ {[%clk 0:00:10.7]}
57... Kg5 {[%clk 0:02:45.1]} 58. Re5 {[%clk 0:00:10.8]} 58... Kg6 {[%clk
0:02:40.9]} 59. Ne7+ {[%clk 0:00:11.6]} 59... Nxe7 {[%clk 0:02:40.8]} 60. Rxe7
{[%clk 0:00:13.5]} 60... Kg5 {[%clk 0:02:42]} 61. Rg7+ {[%clk 0:00:13.7]} 61...
Kh5 {[%clk 0:02:41.8]} 62. Rg3 {[%clk 0:00:14.6]} 62... Ra2 {[%clk 0:02:41.9]}
63. Rf3 {[%clk 0:00:15.7]} 63... Rb2 {[%clk 0:02:43.1]} 64. Kg3 {[%clk
0:00:16.4]} 64... Kg5 {[%clk 0:02:44.5]} 65. h4+ {[%clk 0:00:16.8]} 65... Kg6
{[%clk 0:02:46]} 66. Kh3 {[%clk 0:00:17.6]} 66... Rb1 {[%clk 0:02:45]} 67. g3
{[%clk 0:00:18.2]} 67... Rb4 {[%clk 0:02:45.2]} 68. Rf4 {[%clk 0:00:18.4]} 68...
Rb1 {[%clk 0:02:44]} 69. Kg4 {[%clk 0:00:19.5]} 69... Rb3 {[%clk 0:02:45]} 70.
h5+ {[%clk 0:00:19.6]} 70... Kh6 {[%clk 0:02:46.6]} 71. Kh4 {[%clk 0:00:19.2]}
71... Rb1 {[%clk 0:02:46.5]} 72. Rf6+ {[%clk 0:00:19.8]} 72... Kg7 {[%clk
0:02:47.2]} 73. Rg6+ {[%clk 0:00:20.3]} 73... Kh7 {[%clk 0:02:45.9]} 74. g4
{[%clk 0:00:21.1]} 74... Rb6 {[%clk 0:02:46.8]} 75. Rxb6 {[%clk 0:00:21.1]} 1-0

[Event "GrandPrix_30.05"]
[Site "Chess.com"]
[Date "2020.05.30"]
[Round "1"]
[White "Haapana"]
[Black "OhanyanEminChess"]
[Result "0-1"]
[WhiteElo "2373"]
[BlackElo "2103"]
[TimeControl "600+2"]
[EndTime "8:22:42 PDT"]
[Termination "OhanyanEminChess won on time"]

1. d4 {[%clk 0:09:59.2]} 1... Nf6 {[%clk 0:09:51.2]} 2. c4 {[%clk 0:09:57.7]}
2... c5 {[%clk 0:09:51.8]} 3. d5 {[%clk 0:09:57.7]} 3... b5 {[%clk 0:09:53]} 4.
cxb5 {[%clk 0:09:57.7]} 4... a6 {[%clk 0:09:54.2]} 5. bxa6 {[%clk 0:09:58.1]}
5... g6 {[%clk 0:09:55.1]} 6. Nc3 {[%clk 0:09:58.8]} 6... Bg7 {[%clk 0:09:54.4]}
7. e4 {[%clk 0:09:59.6]} 7... O-O {[%clk 0:09:55.6]} 8. a7 {[%clk 0:09:50.3]}
8... Rxa7 {[%clk 0:09:53.8]} 9. Nf3 {[%clk 0:09:21.4]} 9... d6 {[%clk
0:09:49.7]} 10. Be2 {[%clk 0:08:54]} 10... Qa5 {[%clk 0:09:28.7]} 11. O-O {[%clk
0:08:46.4]} 11... Ba6 {[%clk 0:09:25.5]} 12. Re1 {[%clk 0:06:41]} 12... Nbd7
{[%clk 0:09:16.4]} 13. a4 {[%clk 0:06:10.4]} 13... Rb8 {[%clk 0:09:11.1]} 14.
Bd2 {[%clk 0:05:11.4]} 14... Bxe2 {[%clk 0:05:31.8]} 15. Rxe2 {[%clk 0:04:35.8]}
15... Qa6 {[%clk 0:05:12.1]} 16. Rb1 {[%clk 0:04:26.5]} 16... Ne8 {[%clk
0:05:07.7]} 17. Nb5 {[%clk 0:04:23.2]} 17... Rab7 {[%clk 0:04:57.5]} 18. Bg5
{[%clk 0:04:12]} 18... Kf8 {[%clk 0:04:48.6]} 19. b3 {[%clk 0:03:40]} 19... Nc7
{[%clk 0:04:41.9]} 20. Nxc7 {[%clk 0:03:20.7]} 20... Rxc7 {[%clk 0:04:43.8]} 21.
Rc1 {[%clk 0:02:04.9]} 21... Rcb7 {[%clk 0:02:30.2]} 22. Nd2 {[%clk 0:02:01.5]}
22... Ne5 {[%clk 0:02:27.3]} 23. Re3 {[%clk 0:01:01.3]} 23... Rb4 {[%clk
0:01:18.7]} 24. Qf1 {[%clk 0:00:47.6]} 24... Qa7 {[%clk 0:00:45.5]} 25. Bf4
{[%clk 0:00:37.2]} 25... Nd7 {[%clk 0:00:28.3]} 26. Rh3 {[%clk 0:00:22.8]} 26...
h5 {[%clk 0:00:19.2]} 27. Qe2 {[%clk 0:00:20.7]} 27... Nf6 {[%clk 0:00:13.4]}
28. Kh1 {[%clk 0:00:16.2]} 28... Kg8 {[%clk 0:00:13]} 29. f3 {[%clk 0:00:17.2]}
29... Re8 {[%clk 0:00:13.9]} 30. g4 {[%clk 0:00:17.9]} 30... e6 {[%clk
0:00:12.9]} 31. dxe6 {[%clk 0:00:17.9]} 31... Rxe6 {[%clk 0:00:12.3]} 32. Bg5
{[%clk 0:00:09]} 32... hxg4 {[%clk 0:00:11]} 33. fxg4 {[%clk 0:00:06.6]} 33...
Nxe4 {[%clk 0:00:11.5]} 34. Nxe4 {[%clk 0:00:06.6]} 34... Rbxe4 {[%clk
0:00:11.2]} 35. Qf2 {[%clk 0:00:05.6]} 35... Qb7 {[%clk 0:00:11.7]} 36. Qg2
{[%clk 0:00:05.5]} 36... Re1+ {[%clk 0:00:10.6]} 0-1

[Event "GrandPrix_30.05"]
[Site "Chess.com"]
[Date "2020.05.30"]
[Round "1"]
[White "esskeettit"]
[Black "lilleper1"]
[Result "0-1"]
[WhiteElo "2105"]
[BlackElo "2452"]
[TimeControl "600+2"]
[EndTime "8:22:46 PDT"]
[Termination "lilleper1 won by resignation"]

1. d4 {[%clk 0:10:01.2]} 1... Nf6 {[%clk 0:10:00.4]} 2. c4 {[%clk 0:10:00.7]}
2... e6 {[%clk 0:10:01.5]} 3. Nc3 {[%clk 0:09:58.8]} 3... Bb4 {[%clk 0:10:01.6]}
4. e3 {[%clk 0:09:59.8]} 4... O-O {[%clk 0:10:01.2]} 5. Bd3 {[%clk 0:10:00.9]}
5... c5 {[%clk 0:09:56.3]} 6. Ne2 {[%clk 0:10:00.1]} 6... cxd4 {[%clk
0:09:47.7]} 7. exd4 {[%clk 0:10:02]} 7... d5 {[%clk 0:09:48.9]} 8. cxd5 {[%clk
0:09:56.3]} 8... Nxd5 {[%clk 0:09:49.7]} 9. O-O {[%clk 0:09:56.4]} 9... Nc6
{[%clk 0:09:50.5]} 10. a3 {[%clk 0:09:40.7]} 10... Bd6 {[%clk 0:09:31.7]} 11.
Ne4 {[%clk 0:09:36.7]} 11... Bc7 {[%clk 0:09:05.7]} 12. Bg5 {[%clk 0:09:32.1]}
12... Nce7 {[%clk 0:09:02.4]} 13. Rc1 {[%clk 0:08:55]} 13... b6 {[%clk
0:08:59.9]} 14. Bb1 {[%clk 0:08:45.1]} 14... f6 {[%clk 0:08:42.4]} 15. Be3
{[%clk 0:08:06.3]} 15... Nf5 {[%clk 0:08:25.5]} 16. Qd3 {[%clk 0:08:04.9]} 16...
a5 {[%clk 0:07:35.4]} 17. Rfe1 {[%clk 0:07:39]} 17... Ba6 {[%clk 0:07:34.9]} 18.
Qd2 {[%clk 0:07:39.8]} 18... Rc8 {[%clk 0:07:24.4]} 19. N2g3 {[%clk 0:07:06.4]}
19... Nfxe3 {[%clk 0:07:06.6]} 20. fxe3 {[%clk 0:07:05.2]} 20... f5 {[%clk
0:06:44.2]} 21. Nc3 {[%clk 0:06:34.8]} 21... Bb7 {[%clk 0:05:51.4]} 22. Nce2
{[%clk 0:05:24]} 22... Qg5 {[%clk 0:05:43]} 23. Ba2 {[%clk 0:04:46.7]} 23... Kh8
{[%clk 0:05:04]} 24. Bxd5 {[%clk 0:04:34.3]} 24... Bxd5 {[%clk 0:05:03.8]} 25.
Nf4 {[%clk 0:04:35.6]} 25... Bxf4 {[%clk 0:04:28.6]} 26. exf4 {[%clk 0:04:37.5]}
26... Qg4 {[%clk 0:04:06.9]} 27. Nf1 {[%clk 0:04:38.4]} 27... Be4 {[%clk
0:03:54]} 28. Ng3 {[%clk 0:04:15.8]} 28... Bd5 {[%clk 0:03:53.8]} 29. Rxc8
{[%clk 0:04:07.1]} 29... Rxc8 {[%clk 0:03:53.5]} 30. Rc1 {[%clk 0:04:08]} 30...
Rxc1+ {[%clk 0:03:51.1]} 31. Qxc1 {[%clk 0:04:09.9]} 31... h5 {[%clk 0:03:51.6]}
32. Qd2 {[%clk 0:02:01]} 32... h4 {[%clk 0:03:50]} 33. Nf1 {[%clk 0:02:02.1]}
33... h3 {[%clk 0:03:41.8]} 34. Ne3 {[%clk 0:01:52.2]} 34... Qxf4 {[%clk
0:03:25.5]} 35. gxh3 {[%clk 0:01:35.6]} 35... Qg5+ {[%clk 0:02:53]} 36. Kf1
{[%clk 0:01:14.3]} 36... Be4 {[%clk 0:02:49]} 37. Qe2 {[%clk 0:00:52.9]} 37...
Qh4 {[%clk 0:02:27.9]} 38. Qf2 {[%clk 0:00:21.5]} 38... Bd3+ {[%clk 0:02:21.5]}
39. Ke1 {[%clk 0:00:21.7]} 39... Qxd4 {[%clk 0:02:20]} 40. Qf3 {[%clk
0:00:16.4]} 40... Qh4+ {[%clk 0:01:45.9]} 41. Kd2 {[%clk 0:00:17.7]} 41... Be4
{[%clk 0:01:45]} 42. Qf1 {[%clk 0:00:19.3]} 42... Qf6 {[%clk 0:01:30.7]} 43. Kc1
{[%clk 0:00:18.5]} 43... Qd4 {[%clk 0:01:25.7]} 44. Qe2 {[%clk 0:00:18.6]} 44...
Kg8 {[%clk 0:01:15.5]} 45. Nc2 {[%clk 0:00:11.8]} 45... Qc5 {[%clk 0:01:12.9]}
46. Qd2 {[%clk 0:00:04]} 46... Qxc2+ {[%clk 0:01:09.3]} 47. Qxc2 {[%clk
0:00:05.1]} 47... Bxc2 {[%clk 0:01:10.3]} 48. Kxc2 {[%clk 0:00:07]} 48... e5
{[%clk 0:01:10.7]} 49. Kc3 {[%clk 0:00:08.9]} 49... Kf7 {[%clk 0:01:07.7]} 50.
Kc4 {[%clk 0:00:10.8]} 50... Ke6 {[%clk 0:01:04.6]} 51. Kb5 {[%clk 0:00:12.3]}
51... e4 {[%clk 0:01:05.8]} 52. Kc4 {[%clk 0:00:13.3]} 52... Ke5 {[%clk
0:01:03.8]} 0-1

[Event "GrandPrix_30.05"]
[Site "Chess.com"]
[Date "2020.05.30"]
[Round "1"]
[White "matej2221"]
[Black "Funo09"]
[Result "0-1"]
[WhiteElo "2185"]
[BlackElo "2663"]
[TimeControl "600+2"]
[EndTime "8:22:49 PDT"]
[Termination "Funo09 won by resignation"]

1. e4 {[%clk 0:09:59]} 1... c5 {[%clk 0:09:59.1]} 2. Nf3 {[%clk 0:09:59.8]} 2...
Nf6 {[%clk 0:09:59.8]} 3. e5 {[%clk 0:09:57.9]} 3... Nd5 {[%clk 0:10:01]} 4. Nc3
{[%clk 0:09:59.3]} 4... e6 {[%clk 0:10:02.5]} 5. g3 {[%clk 0:09:49]} 5... Nc6
{[%clk 0:09:49.3]} 6. Bg2 {[%clk 0:09:49.8]} 6... d6 {[%clk 0:09:01.4]} 7. exd6
{[%clk 0:09:33.2]} 7... Bxd6 {[%clk 0:09:03.3]} 8. O-O {[%clk 0:09:33.2]} 8...
O-O {[%clk 0:09:04.1]} 9. Re1 {[%clk 0:09:19.3]} 9... b6 {[%clk 0:08:18.3]} 10.
Nb5 {[%clk 0:08:45.3]} 10... Bb7 {[%clk 0:08:07.5]} 11. c4 {[%clk 0:08:34.7]}
11... Nc7 {[%clk 0:07:23.4]} 12. d4 {[%clk 0:07:05.6]} 12... Nxb5 {[%clk
0:06:35.5]} 13. cxb5 {[%clk 0:07:02.8]} 13... Nb4 {[%clk 0:05:45.8]} 14. a3
{[%clk 0:06:52.6]} 14... Nd5 {[%clk 0:05:45.7]} 15. dxc5 {[%clk 0:06:38.9]}
15... Bxc5 {[%clk 0:04:28.2]} 16. b4 {[%clk 0:06:31.6]} 16... Be7 {[%clk
0:04:15.5]} 17. Bb2 {[%clk 0:06:32.6]} 17... Bf6 {[%clk 0:03:20.4]} 18. Bxf6
{[%clk 0:06:17.2]} 18... Qxf6 {[%clk 0:03:22.3]} 19. Ne5 {[%clk 0:06:16.7]}
19... Rfd8 {[%clk 0:03:14.5]} 20. Qf3 {[%clk 0:06:11.3]} 20... Rac8 {[%clk
0:02:47.3]} 21. Rad1 {[%clk 0:05:46.7]} 21... Rc3 {[%clk 0:02:06.1]} 22. Qxf6
{[%clk 0:02:47.5]} 22... gxf6 {[%clk 0:02:08]} 23. Ng4 {[%clk 0:02:48.6]} 23...
Kg7 {[%clk 0:02:07.5]} 24. Ne3 {[%clk 0:02:27.6]} 24... Nxe3 {[%clk 0:02:05.2]}
25. Rxd8 {[%clk 0:02:15.5]} 25... Nxg2 {[%clk 0:02:05.6]} 26. Ra1 {[%clk
0:02:06.7]} 26... Rc7 {[%clk 0:01:04.7]} 27. a4 {[%clk 0:01:57.7]} 27... e5
{[%clk 0:01:04.2]} 28. a5 {[%clk 0:01:56.4]} 28... Bf3 {[%clk 0:00:51]} 29. axb6
{[%clk 0:01:03.6]} 29... axb6 {[%clk 0:00:52.9]} 30. Rb8 {[%clk 0:00:58.1]}
30... Rc4 {[%clk 0:00:51]} 31. Rxb6 {[%clk 0:00:44.1]} 31... Rxb4 {[%clk
0:00:51.5]} 32. Rb8 {[%clk 0:00:34.5]} 32... f5 {[%clk 0:00:48.2]} 33. b6 {[%clk
0:00:34.4]} 33... h5 {[%clk 0:00:49]} 34. Re8 {[%clk 0:00:07.4]} 34... e4 {[%clk
0:00:36.8]} 35. Rb8 {[%clk 0:00:05.7]} 35... f4 {[%clk 0:00:37.8]} 36. b7 {[%clk
0:00:03.3]} 36... e3 {[%clk 0:00:28.3]} 37. fxe3 {[%clk 0:00:04.1]} 37... fxe3
{[%clk 0:00:29.2]} 38. h4 {[%clk 0:00:03.8]} 38... e2 {[%clk 0:00:23.8]} 39. Kf2
{[%clk 0:00:02.8]} 39... e1=Q+ {[%clk 0:00:24.4]} 40. Rxe1 {[%clk 0:00:04.2]}
40... Nxe1 {[%clk 0:00:26.3]} 41. Kxe1 {[%clk 0:00:04.5]} 41... Rxb7 {[%clk
0:00:27]} 42. Rxb7 {[%clk 0:00:05.2]} 42... Bxb7 {[%clk 0:00:27.7]} 0-1

[Event "GrandPrix_30.05"]
[Site "Chess.com"]
[Date "2020.05.30"]
[Round "1"]
[White "Salnaa"]
[Black "rasmussvane"]
[Result "0-1"]
[WhiteElo "2160"]
[BlackElo "2555"]
[TimeControl "600+2"]
[EndTime "8:22:52 PDT"]
[Termination "rasmussvane won by resignation"]

1. d4 {[%clk 0:10:01.9]} 1... d5 {[%clk 0:10:00.1]} 2. c4 {[%clk 0:10:02.6]}
2... e6 {[%clk 0:10:00.3]} 3. Nc3 {[%clk 0:10:02.8]} 3... a6 {[%clk 0:10:01]} 4.
cxd5 {[%clk 0:09:56.2]} 4... exd5 {[%clk 0:10:02.9]} 5. Nf3 {[%clk 0:09:56.7]}
5... Nf6 {[%clk 0:10:03.3]} 6. Bg5 {[%clk 0:09:56.7]} 6... Be6 {[%clk
0:10:03.6]} 7. Bxf6 {[%clk 0:09:44.7]} 7... Qxf6 {[%clk 0:10:03.7]} 8. Qb3
{[%clk 0:09:45.1]} 8... Ra7 {[%clk 0:10:04.9]} 9. e3 {[%clk 0:09:13.6]} 9... Qd8
{[%clk 0:09:39.6]} 10. Bd3 {[%clk 0:09:05.3]} 10... Bd6 {[%clk 0:09:33.2]} 11.
O-O {[%clk 0:08:43.5]} 11... O-O {[%clk 0:09:29.5]} 12. Na4 {[%clk 0:08:02.1]}
12... Nd7 {[%clk 0:09:19.8]} 13. Rfc1 {[%clk 0:07:41.9]} 13... c6 {[%clk
0:09:19.3]} 14. Rab1 {[%clk 0:07:33.7]} 14... Bg4 {[%clk 0:09:10.9]} 15. Nd2
{[%clk 0:06:39.5]} 15... Re8 {[%clk 0:08:48.2]} 16. Qc2 {[%clk 0:06:37.5]} 16...
Qh4 {[%clk 0:08:41.7]} 17. Nf1 {[%clk 0:06:35.7]} 17... Raa8 {[%clk 0:06:57]}
18. b4 {[%clk 0:06:15.4]} 18... Re6 {[%clk 0:06:03.4]} 19. h3 {[%clk 0:04:52.4]}
19... Rh6 {[%clk 0:05:35.8]} 20. Bf5 {[%clk 0:04:51.2]} 20... Bxf5 {[%clk
0:04:31.4]} 21. Qxf5 {[%clk 0:04:53.1]} 21... Qe7 {[%clk 0:03:56.5]} 22. Nc5
{[%clk 0:04:45.3]} 22... Nb6 {[%clk 0:03:57.4]} 23. Nd2 {[%clk 0:04:21.8]} 23...
Rf6 {[%clk 0:03:58.2]} 24. Qd3 {[%clk 0:04:02.2]} 24... Rg6 {[%clk 0:03:59.1]}
25. a4 {[%clk 0:03:42.2]} 25... Qg5 {[%clk 0:03:42.1]} 26. Qf1 {[%clk
0:03:41.5]} 26... Rb8 {[%clk 0:03:26.4]} 27. b5 {[%clk 0:03:38.3]} 27... cxb5
{[%clk 0:03:07.1]} 28. axb5 {[%clk 0:03:40.2]} 28... a5 {[%clk 0:03:07.8]} 29.
Ra1 {[%clk 0:02:56.4]} 29... Qh4 {[%clk 0:02:39.6]} 30. Kh1 {[%clk 0:02:54.7]}
30... Rf6 {[%clk 0:02:40.4]} 31. Nf3 {[%clk 0:02:52.4]} 31... Qh5 {[%clk
0:02:41]} 32. Rxa5 {[%clk 0:02:46]} 32... g5 {[%clk 0:02:28.1]} 33. g4 {[%clk
0:02:25.8]} 33... Qg6 {[%clk 0:02:29.2]} 34. Kg2 {[%clk 0:02:26.2]} 34... h5
{[%clk 0:02:28.1]} 35. Qd3 {[%clk 0:02:24.6]} 35... Qh6 {[%clk 0:02:22.6]} 36.
e4 {[%clk 0:01:55.7]} 36... hxg4 {[%clk 0:02:12.6]} 37. hxg4 {[%clk 0:01:53.6]}
37... Rf4 {[%clk 0:02:13.7]} 38. e5 {[%clk 0:01:38.2]} 38... Rxg4+ {[%clk
0:02:13.4]} 39. Kf1 {[%clk 0:01:39.4]} 39... Qh1+ {[%clk 0:01:47.7]} 40. Ke2
{[%clk 0:01:40.4]} 40... Qxc1 {[%clk 0:01:48.8]} 41. exd6 {[%clk 0:01:41.9]}
41... Nc4 {[%clk 0:01:33.7]} 42. d7 {[%clk 0:01:31.3]} 42... Qb2+ {[%clk
0:01:05]} 43. Nd2 {[%clk 0:01:31.7]} 43... Rxd4 {[%clk 0:00:56.4]} 44. Ra2
{[%clk 0:00:47.1]} 44... Rxd3 {[%clk 0:00:28.6]} 45. Rxb2 {[%clk 0:00:47.3]}
45... Nxb2 {[%clk 0:00:24.9]} 46. Nxd3 {[%clk 0:00:48.3]} 46... Nxd3 {[%clk
0:00:25.6]} 47. Kxd3 {[%clk 0:00:50.2]} 47... Rd8 {[%clk 0:00:26.4]} 48. Kd4
{[%clk 0:00:52.1]} 48... Rxd7 {[%clk 0:00:27.4]} 49. Nf1 {[%clk 0:00:41.8]}
49... Kg7 {[%clk 0:00:23.4]} 50. Ne3 {[%clk 0:00:42.3]} 50... Kf6 {[%clk
0:00:24.4]} 0-1